[Event "56th Ilmar Raud Memorial 2022"]
[Site "Viljandi"]
[Date "2022.07.06"]
[Round "5.1"]
[White "Shishkov, Andrei"]
[Black "Laurusas, Tomas"]
[Result "0-1"]
[ECO "D10"]
[WhiteElo "2366"]
[BlackElo "2561"]
[Annotator "TA"]
[PlyCount "54"]
[EventDate "2022.07.05"]
[EventType "swiss"]
[EventCountry "EST"]
[SourceTitle "playchess.com"]
[Source "ChessBase"]
[SourceQuality "1"]
[TimeControl "40/5400+30:900+30"]

{[%evp 15,54,21,21,22,17,18,36,17,16,8,13,8,18,13,3,10,14,7,39,-11,0,-15,0,-14,-7,-20,-20,-8,0,-84,-97,-90,-93,-171,-158,-478,-483,-568,-533,-552,-520]} 1. d4 {[%emt 0:00:00]} d5 {[%emt 0:00:59]} 2. c4 {[%emt 0:00:05]} c6 {[%emt 0:00:04]} 3. cxd5 {[%emt 0:00:06]} cxd5 {[%emt 0:00:06]} 4. Bf4 {[%emt 0:00:02]} Nc6 {[%emt 0:03:51]} 5. e3 {[%emt 0:00:23]} a6 {[%emt 0:02:03]} 6. Nc3 {[%emt 0:00:08]} Nf6 {[%emt 0:00:06]} 7. Bd3 {[%emt 0:01:00]} Bg4 {[%emt 0:00:26]} 8. Nge2 {[%emt 0:00:08]} e6 {[%emt 0:03:22]} 9. O-O {[%emt 0:00:09] D10: Slav Defence: 3 cxd5 (without early Nf3) and 3 Nc3.} Bh5 {[%emt 0:01:55]} 10. Rc1 {[%emt 0:04:17]} Be7 {[%emt 0:01:20]} 11. Bg3 {[%emt 0:02:22] White is slightly better.} O-O {[%emt 0:01:50]} 12. f3 {[%emt 0:11:03]} Bg6 {[%emt 0:00:18]} 13. Nf4 {[%emt 0:00:33]} Rc8 {[%emt 0:11:56] has lost popularity (13...Bxd3).} 14. Nxg6 {[%emt 0:02:17]} hxg6 {[%emt 0:00:03]} 15. Na4 {[%emt 0:10:28]} Nd7 {[%emt 0:13:43][%cal Bf6d7,Bd7e5,Be5d3][%mdl 32]} 16. a3 {[%emt 0:08:20] [#]} e5 $146 {[%emt 0:09:24]} ({Predecessor:} 16... Na5 17. Rxc8 Qxc8 18. Qe2 b5 19. Nc3 Nb6 20. e4 Nb3 21. Bf2 dxe4 22. fxe4 Rd8 {0-1 (66) Nguyen,N (2625)-Artemiev,V (2524) Khanty-Mansiysk 2013}) 17. dxe5 {[%emt 0:15:05]} (17. Qb3 $14) 17... Ndxe5 $11 {[%emt 0:00:07]} 18. Kh1 {[%emt 0:02:43]} Bh4 {[%emt 0:09:09]} 19. f4 {[%emt 0:20:09] [#] Hoping for Bxh4.} Bxg3 {[%emt 0:07:39]} 20. hxg3 {[%emt 0:00:06]} Nxd3 {[%emt 0:00:16]} 21. Qxd3 {[%emt 0:00:01]} Ne7 {[%emt 0:03:41][%cal Bc6e7,Be7f5,Bf5e3][%mdl 32]} 22. Rfd1 {[%emt 0:06:15]} (22. Rxc8 $11 Qxc8 23. Nc3) 22... Rxc1 $17 {[%emt 0:06:33]} 23. Rxc1 {[%emt 0:00:01]} Nf5 {[%emt 0:00:08]} 24. Kh2 {[%emt 0:01:44]} (24. Nc3 $17) 24... Re8 $19 {[%emt 0:00:20]} 25. Re1 {[%emt 0:03:28] [#]} (25. e4 $17 dxe4 26. Qxd8 Rxd8 27. Nc3) 25... Qa5 $1 {[%emt 0:02:59][%csl LRa4,LRe1] Black is clearly winning.} 26. Qd1 {[%emt 0:04:26]} Nxe3 {[%emt 0:02:09]} 27. b4 {[%emt 0:00:04]} Qb5 {[%emt 0:00:12] Weighted Error Value: White=0.49/Black=0.05 (flawless)} 0-1

[Event "56th Ilmar Raud Memorial 2022"]
[Site "Viljandi"]
[Date "2022.07.06"]
[Round "5.2"]
[White "Kulaots, Kaido"]
[Black "Pultinevicius, Paulius"]
[Result "1-0"]
[ECO "B12"]
[WhiteElo "2543"]
[BlackElo "2539"]
[Annotator "TA"]
[PlyCount "119"]
[EventDate "2022.07.05"]
[EventType "swiss"]
[EventCountry "EST"]
[SourceTitle "playchess.com"]
[Source "ChessBase"]
[SourceQuality "1"]
[TimeControl "40/5400+30:900+30"]

{[%evp 13,119,22,41,12,15,6,0,0,16,7,0,7,13,-45,-18,-26,-29,-103,44,48,399,48,40,24,34,-66,-76,-137,-93,-134,255,205,214,203,196,201,318,315,368,303,287,241,231,232,234,213,214,204,236,231,229,169,175,171,162,158,166,154,162,151,179,86,213,18,10,8,13,0,0,0,0,0,0,0,8,8,130,126,187,186,235,184,246,243,214,181,275,259,674,614,1191,358,309,0,1421,1410,1379,1297,1267,1235,1149,1162,5068,3413,29948,11206,5106,5102]} 1. e4 {[%emt 0:00:09]} c6 {[%emt 0:00:06]} 2. d4 {[%emt 0:00:12]} d5 {[%emt 0:00:05]} 3. e5 {[%emt 0:00:21]} Bf5 {[%emt 0:00:07]} 4. Nf3 {[%emt 0:00:14]} e6 {[%emt 0:00:06]} 5. Be2 {[%emt 0:00:08]} c5 {[%emt 0:00:12]} 6. Be3 {[%emt 0:01:18]} cxd4 {[%emt 0:00:07]} 7. Nxd4 {[%emt 0:00:03]} Ne7 {[%emt 0:00:07]} 8. Nd2 {[%emt 0:02:37] 8.0-0 is the fancy move. B12: Caro-Kann: Advance Variation.} Nbc6 {[%emt 0:00:43]} 9. Bb5 {[%emt 0:00:38]} a6 {[%emt 0:00:23]} 10. Bxc6+ {[%emt 0:00:15] The position is equal.} (10. Nxf5 Nxf5 11. Bxc6+ bxc6 $15) 10... bxc6 {[%emt 0:00:05]} 11. b4 {[%emt 0:00:14] [#]} (11. Nxf5 Nxf5 12. Nf3 Nxe3 13. fxe3 Rb8 $15) 11... Qb8 $146 {[%emt 0:00:24][%csl LRb4,LRe5]} ({Predecessor:} 11... Qc7 12. O-O Bg6 13. c4 Bd3 14. Re1 dxc4 15. Rc1 Nd5 16. Nxc4 Bxc4 17. Rxc4 Bxb4 18. Rxc6 {1-0 (33) Vachier Lagrave,M (2761)-Dreev,A (2623) Chess.com INT 2022}) 12. O-O {[%emt 0:06:48]} Bg6 {[%emt 0:06:51]} 13. N2b3 {[%emt 0:25:49]} (13. c4 $11) 13... Qxb4 {[%emt 0:07:41]} 14. Rb1 $1 {[%emt 0:08:41]} Rc8 {[%emt 0:17:15]} 15. Qe2 {[%emt 0:28:02]} (15. a3 $11 {remains equal.} Qa4 16. Nc5 Qxa3 17. Nb7) 15... Qa3 {[%emt 0:23:46]} (15... c5 $6 16. Nxc5 Qc4 17. Nxa6 $11 (17. Qxc4 dxc4 18. Nxa6 Nd5 $11)) (15... Qc4 $1 $17 {And now ...c5 would win.} 16. Qxc4 dxc4) 16. Nc5 $1 $14 {[%emt 0:07:42]} Qxc5 {[%emt 0:01:14][%mdl 8192] [#]} ({Black should try} 16... Nf5 $1 $14 17. Nxf5 Bxf5 18. Nxa6 Be7) 17. Qxa6 $2 {[%emt 0:00:36]} (17. Nf5 $1 $18 {[%mdl 512]} Qa3 (17... Qa5 18. Nd6+) 18. Nd6+ Kd7 19. Rb3) 17... Qc4 {[%emt 0:01:06]} (17... Bxc2 $2 18. Nf5 $1 {[%mdl 512]} Bxf5 19. Bxc5 Bxb1 20. Rxb1 $18) 18. Qa7 {[%emt 0:01:00]} f6 $1 {[%emt 0:06:52]} 19. Nxe6 {[%emt 0:10:46]} (19. Rfe1 $1 $14) 19... d4 $1 $15 {[%emt 0:07:01]} (19... fxe5 $2 20. Bc5 Kf7 21. Nxf8 Rhxf8 22. Bxe7 $18 (22. Qxe7+ Kg8 $14)) (19... Qxc2 $2 20. Nd4 Qxb1 21. Rxb1 fxe5 22. Re1 $1 $18) 20. exf6 {[%emt 0:00:24]} (20. Nxd4 $142 fxe5 21. Rfe1) 20... gxf6 {[%emt 0:17:17]} 21. Bxd4 {[%emt 0:00:46]} Bxc2 $2 {[%emt 0:02:10][%mdl 8192]} (21... Qxe6 $17 22. Rfe1 Qd6) 22. Rbe1 $18 {[%emt 0:02:45]} Qa4 {[%emt 0:01:15]} 23. Qxa4 {[%emt 0:00:14]} Bxa4 {[%emt 0:00:04]} 24. Bxf6 {[%emt 0:00:05]} Ng6 {[%emt 0:01:04]} (24... Rg8 $142) 25. Bxh8 {[%emt 0:00:47]} Be7 {[%emt 0:00:58]} 26. Bc3 {[%emt 0:01:57]} Bb5 {[%emt 0:00:03]} 27. Nd4 {[%emt 0:00:19]} Bxf1 {[%emt 0:00:05]} 28. Kxf1 {[%emt 0:00:04]} Kd7 {[%emt 0:00:06]} 29. Rd1 {[%emt 0:00:24]} Ra8 {[%emt 0:00:09]} 30. Nf5+ {[%emt 0:00:20]} Ke6 {[%emt 0:00:04]} 31. Nxe7 {[%emt 0:00:36]} Nxe7 {[%emt 0:00:03][%mdl 4096] Endgame KRB-KRN} 32. Rd2 {[%emt 0:01:22]} ({Resist} 32. Re1+ Kd7 33. Bb4 Nd5) 32... Nd5 {[%emt 0:00:04]} 33. Rc2 {[%emt 0:00:22]} c5 {[%emt 0:00:55]} 34. Bd2 {[%emt 0:00:15]} Kd6 {[%emt 0:00:03]} 35. g4 {[%emt 0:00:30]} Ra4 {[%emt 0:00:04] [#]} 36. h3 {[%emt 0:00:31]} c4 {[%emt 0:00:05]} 37. Ke2 {[%emt 0:01:09]} (37. f4 $18 {is more deadly.}) 37... c3 {[%emt 0:00:38]} (37... Ke5 $16) 38. Bh6 $2 {[%emt 0:00:34]} (38. Bxc3 $18 {Bd2 is the strong threat.} Rxa2 39. Bb2 (39. Be5+ Kxe5 40. Rxa2 Nc3+ 41. Ke3 Nxa2 $11)) 38... Kc5 $11 {[%emt 0:00:22]} 39. f4 {[%emt 0:00:23]} Re4+ {[%emt 0:00:31]} 40. Kf3 {[%emt 0:00:00]} Re3+ {[%emt 0:00:00]} 41. Kg2 {[%emt 0:04:15] aiming for f5.} Re6 $1 {[%emt 0:05:08]} 42. Bf8+ {[%emt 0:00:55]} Kc4 {[%emt 0:00:07]} 43. f5 {[%emt 0:04:07]} Rf6 {[%emt 0:00:21]} 44. Bg7 {[%emt 0:00:46]} Rf7 {[%emt 0:03:46]} (44... Rb6 $1 $11 45. Rc1 Rb7) 45. Bh6 $16 {[%emt 0:00:20]} Kd3 {[%emt 0:06:51] [#] Against Re2} (45... Nb4 $16 {might work better.} 46. Re2 Kd5) 46. Rf2 $1 $18 {[%emt 0:00:33]} Rc7 {[%emt 0:05:31]} (46... Ne3+ {was worth a try.} 47. Kg3 Nc4 48. Rf3+ Kd4) 47. Kf3 {[%emt 0:03:15]} Rc6 {[%emt 0:00:12]} (47... Re7 $142 48. Bc1 Re1) 48. Bc1 {[%emt 0:00:16]} Rb6 {[%emt 0:00:10]} 49. g5 {[%emt 0:00:24] Inhibits Nf6.} Ne7 {[%emt 0:00:29]} (49... Rb1 {was necessary.} 50. f6 Nc7) 50. Kg4 {[%emt 0:04:59] Black must now prevent Kh5.} Rb4+ $2 {[%emt 0:01:56]} (50... Rb1) 51. Kh5 {[%emt 0:00:41]} c2 {[%emt 0:00:22]} 52. Rd2+ $2 {[%emt 0:01:07]} (52. Rf3+ Ke2 53. Re3+ Kd1 54. Rxe7 Kxc1 55. g6 hxg6+ 56. fxg6) 52... Kc3 {[%emt 0:00:13]} 53. Rf2 {[%emt 0:00:17]} (53. f6 Ng6 54. Kh6) 53... Kd3 $1 {[%emt 0:00:24]} 54. Rf3+ {[%emt 0:00:32]} Ke2 {[%emt 0:00:40]} 55. Re3+ {[%emt 0:00:14]} Kd1 {[%emt 0:00:05]} 56. Rxe7 {[%emt 0:00:11]} Kxc1 {[%emt 0:00:04]} 57. Rc7 {[%emt 0:00:12] Threatens to win with g6.} Kd2 {[%emt 0:03:29]} 58. g6 {[%emt 0:00:30] Threatening mate with g7.} hxg6+ {[%emt 0:00:26]} 59. fxg6 {[%emt 0:00:04][%cal Bf5g6,Bg6g7][%mdl 32]} Ra4 {[%emt 0:00:31]} 60. g7 {[%emt 0:00:40] Weighted Error Value: White=0.55/Black=0.53} 1-0

[Event "56th Ilmar Raud Memorial 2022"]
[Site "Viljandi"]
[Date "2022.07.06"]
[Round "5.3"]
[White "Maiorov, Nikita"]
[Black "Rychagov, Nikita"]
[Result "1/2-1/2"]
[ECO "D37"]
[WhiteElo "2474"]
[BlackElo "2076"]
[Annotator "TA"]
[PlyCount "128"]
[EventDate "2022.07.05"]
[EventType "swiss"]
[EventCountry "EST"]
[SourceTitle "playchess.com"]
[Source "ChessBase"]
[SourceQuality "1"]
[TimeControl "40/5400+30:900+30"]

{[%evp 11,128,11,18,0,0,0,0,0,0,8,13,0,13,6,18,0,12,17,18,7,10,14,18,-14,26,26,26,27,27,31,29,27,80,72,90,103,97,103,134,140,127,135,138,114,176,173,181,152,158,116,154,160,226,231,231,229,222,212,262,257,270,270,270,264,264,264,264,241,302,285,337,317,301,304,294,203,202,189,238,237,236,229,193,179,190,150,142,99,99,76,81,82,78,63,64,64,59,64,69,14,31,26,43,43,64,64,64,64,64,22,22,22,22,18,18,18,20,0,5]} 1. d4 {[%emt 0:00:06]} d5 {[%emt 0:00:04]} 2. c4 {[%emt 0:00:06]} e6 {[%emt 0:00:04]} 3. Nc3 {[%emt 0:00:03]} Nf6 {[%emt 0:00:04]} 4. Nf3 {[%emt 0:00:43]} Be7 {[%emt 0:00:07]} 5. Bf4 {[%emt 0:00:04]} O-O {[%emt 0:00:07]} 6. e3 {[%emt 0:00:09]} b6 {[%emt 0:00:04]} 7. a3 {[%emt 0:00:15] D37: Queen's Gambit Declined: 5 Bf4.} c5 {[%emt 0:00:07]} 8. dxc5 {[%emt 0:00:05]} bxc5 {[%emt 0:00:03]} 9. Be2 {[%emt 0:00:13]} Bb7 {[%emt 0:00:10]} 10. O-O {[%emt 0:00:07]} Nbd7 {[%emt 0:00:14]} 11. Qc2 {[%emt 0:07:46] [#]} Qb6 $146 {[%emt 0:03:21]} ({Predecessor:} 11... Nh5 12. Bg3 Nxg3 13. hxg3 Nf6 14. Rfd1 Qb6 15. cxd5 exd5 16. Na4 Qc6 17. Ne5 Qd6 {1-0 (78) Parligras,M (2607)-Landa,K (2601) Germany 2017}) 12. Rfd1 {[%emt 0:02:29]} Rfd8 {[%emt 0:08:04]} 13. Rd2 {[%emt 0:17:08]} Rac8 {[%emt 0:02:02]} 14. Rad1 {[%emt 0:02:20]} h6 {[%emt 0:05:27]} 15. Bg3 {[%emt 0:07:15]} Bc6 {[%emt 0:07:51]} 16. cxd5 {[%emt 0:19:10]} Nxd5 {[%emt 0:10:51]} 17. Ne4 {[%emt 0:00:59]} N7f6 {[%emt 0:01:37]} 18. Nxf6+ {[%emt 0:02:01]} Nxf6 {[%emt 0:00:50]} 19. Ne5 {[%emt 0:02:06][%cal Bf3e5,Be5c4,Bc4d6][%mdl 32]} Bd5 {[%emt 0:05:02]} 20. Nc4 {[%emt 0:02:16]} Qb7 {[%emt 0:00:48]} 21. f3 {[%emt 0:00:12] Prevents Ne4.} Qa8 {[%emt 0:18:17]} (21... Bxc4 $11 22. Bxc4 Rxd2 23. Rxd2 (23. Qxd2 Rd8 $11) 23... Nd5) 22. e4 {[%emt 0:01:56]} Bc6 {[%emt 0:00:36]} 23. Bd6 {[%emt 0:06:17]} Bxd6 {[%emt 0:00:30]} 24. Nxd6 {[%emt 0:00:06]} Rc7 {[%emt 0:00:42]} 25. Qxc5 {[%emt 0:00:39]} Qb8 {[%emt 0:04:20]} 26. Qb4 {[%emt 0:03:23] Inhibits Ba4.} Qxb4 {[%emt 0:00:44]} 27. axb4 {[%emt 0:00:04]} Ba4 {[%emt 0:01:14]} (27... Rcd7 $16 28. b5 Bd5) 28. Ra1 $18 {[%emt 0:05:09]} Be8 {[%emt 0:01:55]} 29. Kf2 {[%emt 0:03:37]} Kf8 {[%emt 0:00:33]} 30. b5 {[%emt 0:03:04]} Ke7 {[%emt 0:01:04]} 31. Rad1 {[%emt 0:01:04] White is much more active.} Rcd7 {[%emt 0:01:24]} (31... Kf8 $16 32. b3 Rcd7) 32. e5 {[%emt 0:01:42]} Nd5 {[%emt 0:00:29]} 33. b6 {[%emt 0:03:17] Against Rc7} ({Resist} 33. Bc4 $6 Nb6 $16) 33... axb6 {[%emt 0:28:15]} 34. Nxe8 {[%emt 0:00:19]} Rxe8 {[%emt 0:00:00]} 35. Bb5 {[%emt 0:00:06]} Rc8 {[%emt 0:00:00]} 36. Bxd7 {[%emt 0:00:06]} Kxd7 {[%emt 0:00:00][%mdl 4096] Endgame KRR-KRN} 37. Ra1 {[%emt 0:02:04]} Rc7 {[%emt 0:00:00]} 38. Ra6 {[%emt 0:00:17]} Ke7 {[%emt 0:00:00]} 39. b3 {[%emt 0:01:43][%cal Bb2b3,Bb3b4][%mdl 32]} b5 {[%emt 0:00:00]} 40. Rda2 {[%emt 0:00:00]} f6 {[%emt 0:00:00]} 41. exf6+ {[%emt 0:01:09]} Kxf6 {[%emt 0:00:00]} 42. Re2 {[%emt 0:00:18]} Nf4 {[%emt 0:00:00]} 43. Rd2 {[%emt 0:02:36] aiming for g3.} Rc3 {[%emt 0:00:00]} 44. b4 {[%emt 0:04:26]} Rb3 {[%emt 0:00:00]} (44... Nd3+ {was worth a try.} 45. Kg3 Nxb4) 45. g3 {[%emt 0:03:30]} Nd3+ {[%emt 0:00:00]} 46. Ke2 {[%emt 0:00:22]} Ne5 {[%emt 0:00:00]} 47. f4 {[%emt 0:07:02]} Nc4 {[%emt 0:00:00]} 48. Rd7 {[%emt 0:00:18] Strongly threatening g4.} Rxb4 {[%emt 0:00:00]} 49. Raa7 {[%emt 0:00:20]} g5 {[%emt 0:00:00]} 50. Rf7+ {[%emt 0:00:54]} Kg6 {[%emt 0:00:00]} 51. Kd3 {[%emt 0:04:14]} Rb2 {[%emt 0:00:00]} 52. Rg7+ {[%emt 0:00:13]} Kf5 {[%emt 0:00:00]} 53. fxg5 {[%emt 0:02:03]} Ne5+ {[%emt 0:00:00]} 54. Kc3 {[%emt 0:00:14]} Rxh2 {[%emt 0:00:00]} 55. g4+ {[%emt 0:00:49]} (55. gxh6 $14 Rxh6 56. Ra1) 55... Ke4 {[%emt 0:00:00]} 56. Ra1 {[%emt 0:01:55]} Rh3+ {[%emt 0:00:00]} 57. Kb4 {[%emt 0:00:08] Black must now prevent gxh6.} hxg5 {[%emt 0:00:00]} 58. Rxg5 {[%emt 0:00:32]} Kf4 {[%emt 0:00:00]} 59. Rg8 {[%emt 0:00:07] And now g5 would win.} Nf3 {[%emt 0:00:38] Inhibits g5.} 60. Ra7 {[%emt 0:01:43]} (60. Rf1 $5 {[%cal Rg4g5]}) 60... Rg3 {[%emt 0:00:40] The position is equal.} 61. Rf7+ {[%emt 0:00:08]} Ke3 {[%emt 0:02:30]} 62. Kxb5 {[%emt 0:00:27]} e5 {[%emt 0:00:02]} 63. Kc4 {[%emt 0:01:05]} e4 {[%emt 0:04:18] [#] Threatens to win with ...Ne5+.} 64. Rf5 {[%emt 0:00:23] Prevents Ne5+.} Kf2 {[%emt 0:00:46] Black escapes into a draw.  Weighted Error Value: White=0.11 (very precise) /Black=0.12 (very precise)} 1/2-1/2

[Event "56th Ilmar Raud Memorial 2022"]
[Site "Viljandi"]
[Date "2022.07.06"]
[Round "5.4"]
[White "Miezis, Normunds"]
[Black "Sakalauskas, Vaidas"]
[Result "1/2-1/2"]
[ECO "C01"]
[WhiteElo "2446"]
[BlackElo "2327"]
[Annotator "TA"]
[PlyCount "80"]
[EventDate "2022.07.05"]
[EventType "swiss"]
[EventCountry "EST"]
[SourceTitle "playchess.com"]
[Source "ChessBase"]
[SourceQuality "1"]
[TimeControl "40/5400+30:900+30"]

{[%evp 9,80,0,5,-34,-31,-27,-33,-38,-39,-52,-61,-122,-119,-120,-116,-91,-49,-115,-109,-91,-114,-108,-104,-101,-95,-117,-83,-159,-102,-127,-83,-108,-89,-109,-60,-63,-62,-115,0,0,0,0,0,-56,-60,-62,-29,-32,-33,-41,-32,-31,-35,-37,-37,-37,-35,-30,-39,-46,-41,-41,-22,-88,-26,-50,0,0,0,0,0,0,0]} 1. c4 {[%emt 0:00:05]} e6 {[%emt 0:00:17]} 2. e4 {[%emt 0:00:25]} d5 {[%emt 0:00:12]} 3. exd5 {[%emt 0:00:10]} exd5 {[%emt 0:00:07]} 4. d4 {[%emt 0:00:10]} Bb4+ {[%emt 0:00:59]} 5. Nc3 {[%emt 0:00:16]} Ne7 {[%emt 0:00:18]} 6. Bg5 {[%emt 0:10:06] [#] C01: French: Exchange Variation.} h6 $146 {[%emt 0:06:29]} ({Predecessor:} 6... O-O 7. Bd3 dxc4 8. Bxc4 Nbc6 9. Nge2 Kh8 10. O-O f6 11. Bf4 Bd6 12. Bc1 Nf5 13. Bd5 Nfe7 14. Bb3 Bf5 15. a3 a6 16. Ba2 Bg6 17. d5 Ne5 18. Nd4 Qd7 19. Ne6 Rfe8 20. Nf4 c6 {½-½ (20) Ramirez,M (2036)-Cordero,D (1954) Sucre 2016}) 7. Bh4 {[%emt 0:04:21]} O-O {[%emt 0:04:17]} 8. Nf3 {[%emt 0:05:10] Black is slightly better.} Nbc6 {[%emt 0:16:27]} 9. Qd2 {[%emt 0:09:30]} Bg4 {[%emt 0:05:45]} 10. Be2 {[%emt 0:06:47]} ({Better is} 10. O-O-O $15) 10... dxc4 $17 {[%emt 0:02:05]} 11. Rd1 {[%emt 0:02:18]} Qe8 {[%emt 0:12:25] Hoping for ...Bxf3.} 12. O-O {[%emt 0:06:04]} Nf5 {[%emt 0:00:50]} 13. Rfe1 {[%emt 0:08:31]} (13. Qf4 $15 h5 14. Rfe1) 13... Nxh4 {[%emt 0:10:33]} 14. Nxh4 {[%emt 0:02:18]} Bxe2 {[%emt 0:00:24]} 15. Rxe2 {[%emt 0:00:22]} Qd7 {[%emt 0:00:05]} 16. d5 {[%emt 0:04:51]} Ne7 {[%emt 0:01:11]} 17. Qd4 {[%emt 0:04:37]} Rad8 {[%emt 0:14:30]} 18. h3 {[%emt 0:05:28] [#]} (18. Qxc4 $142 Bxc3 19. bxc3) 18... Bxc3 {[%emt 0:03:09]} ({Black should play} 18... b5 $1 19. Red2 a6) 19. bxc3 {[%emt 0:06:56]} Nxd5 {[%emt 0:00:22]} 20. Red2 {[%emt 0:00:25][%cal Rd4d5]} c6 {[%emt 0:01:57] White must now prevent ...b5.} 21. Qxc4 {[%emt 0:00:38]} b5 {[%emt 0:04:10]} (21... Rde8 $17 22. Qb3 Qc8) 22. Qc5 $15 {[%emt 0:02:12][%cal Oa2a4]} Rfe8 {[%emt 0:02:10]} 23. Nf3 {[%emt 0:00:43] [#]} (23. a4 $15 a6 24. c4 bxc4 25. Qxc4) 23... Re6 {[%emt 0:00:12]} ({Black should try} 23... Qd6 $1 $17 {[%cal Rd6c5]} 24. Qxd6 Rxd6) 24. a4 $11 {[%emt 0:08:27] axb5 is the strong threat.} a6 {[%emt 0:00:59]} (24... bxa4 $2 25. c4 $18) 25. axb5 $1 {[%emt 0:00:55]} axb5 {[%emt 0:00:06]} 26. c4 {[%emt 0:03:29]} (26. Nd4 $11) 26... bxc4 $15 {[%emt 0:00:23]} 27. Qxc4 {[%emt 0:00:09]} Rde8 {[%emt 0:00:46]} 28. Nd4 {[%emt 0:02:57]} Re1+ {[%emt 0:05:14]} 29. Rxe1 {[%emt 0:00:12]} Rxe1+ {[%emt 0:00:04]} 30. Kh2 {[%emt 0:00:08]} Ne7 {[%emt 0:00:41]} 31. Nf3 {[%emt 0:01:56][%csl LRd7,LRe1]} Qc7+ {[%emt 0:00:12]} 32. g3 {[%emt 0:00:09]} Re6 {[%emt 0:00:13][%cal Be1e6,Be6f6,Bf6f5][%mdl 32]} 33. Qc5 {[%emt 0:00:36]} Rf6 {[%emt 0:01:15]} 34. Kg2 {[%emt 0:00:55]} Rf5 {[%emt 0:00:37]} 35. Qe3 {[%emt 0:00:24]} c5 {[%emt 0:01:28]} (35... Nd5 {is interesting.} 36. Qe8+ Kh7 37. Nd4 Rf6) 36. Re2 {[%emt 0:00:49]} (36. Qe4 $11 {remains equal.}) 36... Qc6 {[%emt 0:01:27]} (36... Nd5 $17 37. Qd3 g6) 37. Qe4 {[%emt 0:00:43]} ({Don't play} 37. Qxe7 Qxf3+ 38. Kg1 c4 $17) 37... c4 {[%emt 0:03:09]} (37... g6 $15) 38. Nd4 {[%emt 0:00:30] The position is equal.} Qxe4+ {[%emt 0:01:00]} 39. Rxe4 {[%emt 0:00:02]} Rd5 {[%emt 0:01:09]} 40. Ne2 {[%emt 0:00:00]} Nf5 {[%emt 0:00:00] Weighted Error Value: White=0.18 (very precise) /Black=0.19 (very precise)} 1/2-1/2